fUST/lending_fUST_20260127
["ID","MTS","AMOUNT","RATE_DAILY","PERIOD"]
[403724740,1769509841724,-51342.99260131,0.0001499,2]
[403724742,1769509841737,-5000.0,0.00015,2]
[403724744,1769509841746,-1837.9324731,0.00015,2]
[403724746,1769509841756,-1374.32636914,0.00015,2]
[403724748,1769509841767,-274.46400997,0.0001515,20]
[403724750,1769509841780,-250.0,0.00015292,2]
[403724752,1769509841792,-1200.0,0.00015316,2]
[403724754,1769509841803,-2194.25,0.00015342,2]
[403724756,1769509841815,-2000.0,0.00015342,2]
[403724758,1769509841825,-2000.0,0.00015342,2]
[403724760,1769509841834,-2000.0,0.00015342,2]
[403724762,1769509841844,-1886.16038037,0.00015342,2]
[403724764,1769509841854,-2000.0,0.00015342,2]
[403724766,1769509841865,-2000.0,0.00015342,2]
[403724768,1769509841876,-2037.6236239,0.00015342,2]
[403724770,1769509841886,-588.44180529,0.000154,2]
[403724772,1769509841896,-730479.1855924,0.000154,2]
[403724774,1769509841907,-823.0,0.00015444,2]
[403724776,1769509841916,-2500.0,0.00015464,2]
[403724778,1769509841926,-2500.0,0.00015464,2]
[403724780,1769509841936,-2500.0,0.00015464,2]
[403724782,1769509841946,-2500.0,0.00015464,2]
[403724784,1769509841956,-2500.0,0.00015464,2]
[403724786,1769509841965,-2500.0,0.00015464,2]
[403724788,1769509841975,-2500.0,0.00015464,2]
[403724790,1769509841984,-2500.0,0.00015464,2]
[403724792,1769509841994,-1448.22561692,0.00015464,2]
[403724794,1769509842004,-2500.0,0.00015464,2]
[403724796,1769509842013,-2500.0,0.00015464,2]
[403724798,1769509842022,-1572.69,0.00015559,2]
[403724799,1769509842031,-479.83076187,0.00015604,2]
[403724802,1769509842041,-1932.46060126,0.0001564,2]
[403724804,1769509842052,-179.9820018,0.00015739,2]
[403724806,1769509842063,-1500.0,0.00015864,2]
[403724808,1769509842073,-2500.0,0.0001589,2]
[403724810,1769509842084,-2500.0,0.0001589,2]
[403724811,1769509842095,-2500.0,0.0001589,2]
[403724813,1769509842105,-2500.0,0.0001589,2]
[403724816,1769509842118,-2500.0,0.0001589,2]
[403724817,1769509842128,-160.0,0.00015892,2]
[403724819,1769509842139,-160.0,0.00015892,2]
[403724822,1769509842153,-160.0,0.00015892,2]
[403724824,1769509842164,-278.15468107,0.00015892,2]
[403724826,1769509842173,-201.93286099,0.00015892,2]
[403724828,1769509842183,-500.0,0.00015892,2]
[403724830,1769509842196,-151.0,0.00015892,2]
[403724832,1769509842206,-553.64373807,0.00015892,2]
[403724834,1769509842217,-668.65185757,0.00015892,2]
[403724836,1769509842227,-209.40437684,0.00015892,2]
[403724838,1769509842237,-151.0,0.00015892,2]
[403724840,1769509842248,-217.15233878,0.00015892,2]
[403724842,1769509842258,-151.0,0.00015892,2]
[403724844,1769509842268,-151.0,0.00015892,2]
[403724846,1769509842279,-225.18697532,0.00015892,2]
[403724849,1769509842293,-151.0,0.00015892,2]
[403724851,1769509842303,-233.51889341,0.00015892,2]
[403724853,1769509842313,-151.0,0.00015892,2]
[403724855,1769509842323,-242.15909246,0.00015892,2]
[403724857,1769509842332,-151.0,0.00015892,2]
[403724859,1769509842342,-251.11897888,0.00015892,2]
[403724861,1769509842351,-151.0,0.00015892,2]
[403724863,1769509842362,-260.4103811,0.00015892,2]
[403724865,1769509842371,-270.0455652,0.00015892,2]
[403724867,1769509842381,-280.03725112,0.00015892,2]
[403724869,1769509842390,-162.380719,0.00015892,2]
[403724871,1769509842400,-290.39862941,0.00015892,2]
[403724873,1769509842409,-301.1433787,0.00015892,2]
[403724875,1769509842419,-30000.0,0.00015892,2]
[403724877,1769509842429,-151.0,0.00015892,2]
[403724879,1769509842441,-151.0,0.00015892,2]
[403724881,1769509842450,-151.0,0.00015892,2]
[403724883,1769509842460,-151.0,0.00015892,2]
[403724885,1769509842469,-2674.60743027,0.00015892,2]
[403724887,1769509842478,-151.0,0.00015892,2]
[403724889,1769509842488,-151.0,0.00015892,2]
[403724891,1769509842497,-151.0,0.00015892,2]
[403724893,1769509842506,-151.0,0.00015892,2]
[403724895,1769509842516,-151.0,0.00015892,2]
[403724897,1769509842527,-151.0,0.00015892,2]
[403724899,1769509842536,-151.0,0.00015892,2]
[403724901,1769509842545,-151.0,0.00015892,2]
[403724903,1769509842555,-151.0,0.00015892,2]
[403724905,1769509842564,-151.0,0.00015892,2]
[403724907,1769509842573,-151.0,0.00015892,2]
[403724909,1769509842583,-151.0,0.00015892,2]
[403724911,1769509842592,-151.0,0.00015892,2]
[403724913,1769509842602,-164.81135061,0.00015892,2]
[403724915,1769509842611,-250.0,0.00015892,2]
[403724917,1769509842621,-250.0,0.00015892,2]
[403724919,1769509842630,-250.0,0.00015892,2]
[403724921,1769509842639,-250.0,0.00015892,2]
[403724924,1769509842649,-250.0,0.00015892,2]
[403724926,1769509842659,-250.0,0.00015892,2]
[403724929,1769509842668,-1957.856,0.00015892,2]
[403724931,1769509842677,-250.0,0.00015892,2]
[403724933,1769509842689,-250.0,0.00015892,2]
[403724935,1769509842698,-250.0,0.00015892,2]
[403724937,1769509842707,-2030.296672,0.00015947,2]
[403724939,1769509842718,-1000.0,0.00015986,2]
[403724941,1769509842728,-1118.09358773,0.00016002,2]
[403724943,1769509842739,-151.0,0.00016008,2]
[403724945,1769509842753,-151.0,0.00016008,2]
[403724947,1769509842762,-151.0,0.00016008,2]
[403724949,1769509842772,-151.0,0.00016008,2]
[403724951,1769509842782,-151.0,0.00016008,2]
[403724953,1769509842792,-151.0,0.00016008,2]
[403724956,1769509842801,-174.357781,0.00016008,2]
[403724959,1769509842811,-725.961314,0.00016008,2]
[403724962,1769509842821,-725.961314,0.00016008,2]
[403724965,1769509842831,-725.961314,0.00016008,2]
[403724968,1769509842840,-725.961314,0.00016008,2]
[403724971,1769509842853,-2556.86628974,0.00016012,2]
[403724974,1769509842862,-3000.0,0.00016012,2]
[403724977,1769509842871,-3000.0,0.00016012,2]
[403724980,1769509842880,-1043.93892741,0.00016012,2]
[403724982,1769509842890,-3000.0,0.00016012,2]
[403724984,1769509842899,-3000.0,0.00016012,2]
[403724986,1769509842908,-3000.0,0.00016012,2]
[403724988,1769509842918,-3000.0,0.00016012,2]
[403724990,1769509842927,-3000.0,0.00016012,2]
[403724992,1769509842936,-3000.0,0.00016012,2]
[403724994,1769509842947,-324.73,0.000162,2]
[403724996,1769509842956,-549.34,0.000162,2]
[403724998,1769509842966,-672.27,0.000162,2]
[403725000,1769509842975,-1800.0,0.00016412,2]
[403725002,1769509842985,-250.0,0.00016438,2]
[403725004,1769509842994,-597.36308132,0.00016438,2]
[403725006,1769509843004,-155.27552834,0.00016438,2]
[403725009,1769509843013,-151.0,0.00016438,2]
[403725010,1769509843023,-1227.72467895,0.00016438,2]
[403725013,1769509843032,-1222.66874227,0.00016438,2]
[403725015,1769509843042,-396.39772144,0.00016438,2]
[403725017,1769509843051,-3000.0,0.00016438,2]
[403725019,1769509843061,-3000.0,0.00016438,2]
[403725021,1769509843070,-574.12855637,0.0001644,2]
[403725023,1769509843080,-693.3919763,0.0001644,2]
[403725025,1769509843088,-31110.0,0.0001644,2]
[403725027,1769509843099,-2773.56790519,0.0001644,2]
[403725029,1769509843108,-635.12,0.00016464,2]
[403725031,1769509843118,-200.07068234,0.00016473,2]
[403725033,1769509843128,-3500.0,0.0001656,2]
[403725035,1769509843138,-500.0,0.0001656,2]
[403725037,1769509843148,-3500.0,0.0001656,2]
[403725039,1769509843160,-3500.0,0.0001656,2]
[403725041,1769509843170,-3500.0,0.0001656,2]
[403725043,1769509843180,-2951.8102882,0.0001656,2]
[403725045,1769509843189,-3500.0,0.0001656,2]
[403725047,1769509843199,-3500.0,0.0001656,2]
[403725049,1769509843208,-1084.87424796,0.00016944,2]
[403725051,1769509843218,-1152.0,0.0001696,2]
[403725054,1769509843229,-2100.0,0.0001696,2]
[403725056,1769509843239,-1615.71955138,0.00016986,2]
[403725058,1769509843249,-3500.0,0.00016986,2]
[403725060,1769509843258,-497.75872377,0.00016988,2]
[403725062,1769509843267,-539.84671027,0.00016988,2]
[403725064,1769509843277,-485.30085207,0.00016988,2]
[403725066,1769509843286,-2876.18991768,0.00016988,2]
[403725068,1769509843295,-1000.0,0.00017108,2]
[403725070,1769509843305,-212.6308883,0.00017108,2]
[403725072,1769509843315,-1500.0,0.00017108,2]
[403725074,1769509843325,-500.0,0.00017108,2]
[403725076,1769509843334,-600.35394554,0.00017108,2]
[403725078,1769509843344,-828.85776734,0.00017108,2]
[403725079,1769509843353,-16191.6643496,0.00017145,2]
[403725081,1769509843363,-1270.24,0.00017248,2]
[403725083,1769509843372,-763.5381713,0.0001748,2]
[403725086,1769509843382,-8657.46981776,0.000175,3]
[403725088,1769509843393,-318.12397634,0.00017508,2]
[403725090,1769509843403,-4000.0,0.00017534,2]
[403725092,1769509843413,-2982.60894464,0.00017536,2]
[403725094,1769509843422,-477.31420282,0.00017552,2]
[403725096,1769509843431,-859.16556508,0.00017552,2]
[403725098,1769509843441,-1527.40544902,0.00017552,2]
[403725100,1769509843451,-2386.5710141,0.00017552,2]
[403725102,1769509843460,-3436.6622603,0.00017552,2]
[403725104,1769509843469,-529.47891481,0.00017552,2]
[403725106,1769509843478,-953.06204666,0.00017552,2]
[403725108,1769509843487,-1694.33252739,0.00017552,2]
[403725110,1769509843496,-2647.39457405,0.00017552,2]
[403725112,1769509843506,-1000.0,0.00017585,2]
[403725114,1769509843515,-244.0,0.00017585,2]
[403725116,1769509843525,-543.33777447,0.00017604,2]
[403725118,1769509843535,-1646.7125203,0.00017962,7]
[403725120,1769509843544,-103195.9966685,0.00018,2]
[403725122,1769509843553,-1905.36,0.00018032,2]
[403725124,1769509843563,-1819.71586935,0.00018082,2]
[403725126,1769509843572,-1802.8505233,0.00018191,2]
[403725128,1769509843581,-729.0,0.000184,2]
[403725130,1769509843590,-729.0,0.000184,2]
[403725132,1769509843599,-729.0,0.000184,2]
[403725134,1769509843608,-1114.69821954,0.00018528,7]
[403725136,1769509843618,-610.0,0.00018625,2]
[403725138,1769509843627,-339.44301533,0.00018634,2]
[403725140,1769509843637,-202.55847366,0.00018652,2]
[403725142,1769509843646,-500.0,0.00018652,2]
[403725144,1769509843656,-150.0,0.00018652,2]
[403725146,1769509843665,-500.0,0.00018652,2]
[403725148,1769509843674,-150.0,0.00018652,2]
[403725150,1769509843683,-200.0,0.00018652,2]
[403725152,1769509843692,-200.0,0.00018652,2]
[403725154,1769509843702,-500.0,0.00018652,2]
[403725156,1769509843711,-500.0,0.00018652,2]
[403725158,1769509843720,-500.0,0.00018652,2]
[403725160,1769509843730,-500.0,0.00018652,2]
[403725162,1769509843743,-276.75967829,0.00018652,2]
[403725164,1769509843752,-500.0,0.00018652,2]
[403725165,1769509843761,-500.0,0.00018652,2]
[403725167,1769509843770,-729.0,0.0001872,2]
[403725170,1769509843781,-729.0,0.0001872,2]
[403725171,1769509843791,-729.0,0.0001872,2]
[403725174,1769509843801,-729.0,0.0001872,2]
[403725176,1769509843811,-194.6577276,0.00018767,2]
[403725178,1769509843821,-500.0,0.00018789,2]
[403725180,1769509843830,-150.0,0.00018789,2]
[403725181,1769509843840,-500.0,0.00018789,2]
[403725183,1769509843850,-222.70372137,0.00018789,2]
[403725186,1769509843859,-500.0,0.00018789,2]
[403725188,1769509843869,-500.0,0.00018789,2]
[403725190,1769509843878,-500.0,0.00018789,2]
[403725192,1769509843887,-500.0,0.00018789,2]
[403725194,1769509843896,-500.0,0.00018789,2]
[403725196,1769509843905,-500.0,0.00018789,2]
[403725197,1769509843915,-2540.48,0.00018816,2]
[403725199,1769509843924,-501.31416643,0.00018828,5]
[403725202,1769509843934,-303.10001603,0.000189,2]
[403725204,1769509843944,-303.10001603,0.000189,2]
[403725206,1769509843955,-500.0,0.00018926,2]
[403725208,1769509843964,-249.60849267,0.00018926,2]
[403725210,1769509843973,-500.0,0.00018926,2]
[403725212,1769509843983,-500.0,0.00018926,2]
[403725214,1769509843992,-637.45973716,0.00018926,2]
[403725216,1769509844002,-300.81623099,0.00018926,2]
[403725218,1769509844011,-223.92590858,0.00018926,2]
[403725220,1769509844020,-500.0,0.00018926,2]
[403725222,1769509844029,-500.0,0.00018926,2]
[403725224,1769509844040,-200.0,0.00018999,2]
[403725226,1769509844049,-200.0,0.00018999,2]
[403725228,1769509844058,-54731.0253769,0.00019,2]
[403725230,1769509844068,-151.0,0.00019,2]
[403725232,1769509844077,-154.294068,0.00019,2]
[403725234,1769509844086,-153.5789033,0.00019,2]
[403725236,1769509844095,-151.0,0.00019,2]
[403725237,1769509844104,-151.0,0.00019,2]
[403725239,1769509844113,-151.0,0.00019,2]
[403725241,1769509844122,-151.0,0.00019,2]
[403725242,1769509844131,-151.0,0.00019,2]
[403725244,1769509844141,-725.961314,0.00019,2]
[403725246,1769509844151,-725.961314,0.00019,2]
[403725248,1769509844160,-725.961314,0.00019,2]
[403725249,1769509844169,-725.961314,0.00019,2]
[403725251,1769509844179,-320.0,0.0001904,2]
[403725253,1769509844188,-553.0,0.0001904,2]
[403725255,1769509844199,-157.69654565,0.00019041,30]
[403725256,1769509844209,-210.494274,0.00019041,7]
[403725258,1769509844217,-500.0,0.00019063,2]
[403725260,1769509844227,-500.0,0.00019063,2]
[403725261,1769509844236,-500.0,0.00019063,2]
[403725263,1769509844249,-500.0,0.00019063,2]
[403725265,1769509844259,-500.0,0.00019063,2]
[403725267,1769509844268,-10647.92546678,0.00019078,2]
[403725269,1769509844278,-491.153306,0.00019089,7]
[403725270,1769509844287,-303.10001603,0.00019089,2]
[403725272,1769509844297,-303.10001603,0.00019089,2]
[403725274,1769509844306,-223.154125,0.00019178,7]
[403725275,1769509844315,-507.9828,0.00019178,2]
[403725277,1769509844324,-200.0,0.00019178,2]
[403725279,1769509844334,-507.9828,0.00019178,2]
[403725281,1769509844343,-507.9828,0.00019178,2]
[403725282,1769509844352,-507.9828,0.00019178,2]
[403725284,1769509844362,-151.0,0.00019178,2]
[403725286,1769509844372,-230.66,0.00019178,2]
[403725288,1769509844382,-151.0,0.00019178,2]
[403725289,1769509844391,-151.0,0.00019178,2]
[403725291,1769509844400,-151.0,0.00019178,2]
[403725293,1769509844409,-151.0,0.00019178,2]
[403725294,1769509844418,-507.9828,0.00019178,2]
[403725296,1769509844427,-725.961314,0.00019178,2]
[403725298,1769509844436,-725.961314,0.00019178,2]
[403725300,1769509844445,-725.961314,0.00019178,2]
[403725301,1769509844454,-725.961314,0.00019178,2]
[403725303,1769509844463,-151.0,0.00019178,2]
[403725305,1769509844472,-234.857749,0.00019178,2]
[403725307,1769509844481,-234.857749,0.00019178,2]
[403725308,1769509844490,-234.857749,0.00019178,2]
[403725310,1769509844499,-234.857749,0.00019178,2]
[403725312,1769509844508,-151.0,0.00019178,2]
[403725313,1769509844518,-151.0,0.00019178,2]
[403725315,1769509844527,-151.0,0.00019178,2]
[403725317,1769509844536,-151.0,0.00019178,2]
[403725319,1769509844545,-151.0,0.00019178,2]
[403725321,1769509844554,-245.09712,0.00019178,2]
[403725323,1769509844563,-151.0,0.00019178,2]
[403725324,1769509844571,-151.0,0.00019178,2]
[403725326,1769509844580,-158.828846,0.00019178,2]
[403725328,1769509844589,-151.0,0.00019178,2]
[403725329,1769509844598,-182.048064,0.00019178,2]
[403725331,1769509844607,-182.048064,0.00019178,2]
[403725333,1769509844616,-182.048064,0.00019178,2]
[403725335,1769509844625,-182.048064,0.00019178,2]
[403725337,1769509844634,-190.876325,0.00019178,2]
[403725339,1769509844644,-151.0,0.00019178,2]
[403725341,1769509844653,-190.876325,0.00019178,2]
[403725342,1769509844663,-151.0,0.00019178,2]
[403725344,1769509844671,-190.876325,0.00019178,2]
[403725346,1769509844680,-151.0,0.00019178,2]
[403725359,1769509844816,-190.876325,0.00019178,2]
[403725361,1769509844827,-229.808374,0.00019178,2]
[403725362,1769509844836,-151.0,0.00019178,2]
[403725364,1769509844846,-151.0,0.00019178,2]
[403725366,1769509844855,-151.0,0.00019178,2]
[403725368,1769509844863,-152.972032,0.00019178,2]
[403725369,1769509844872,-151.0,0.00019178,2]
[403725371,1769509844881,-151.0,0.00019178,2]
[403725373,1769509844890,-151.0,0.00019178,2]
[403725375,1769509844899,-151.0,0.00019178,2]
[403725377,1769509844908,-151.0,0.00019178,2]
[403725378,1769509844917,-151.33869,0.00019178,2]
[403725380,1769509844927,-151.0,0.00019178,2]
[403725382,1769509844936,-151.69617,0.00019178,2]
[403725384,1769509844945,-151.0,0.00019178,2]
[403725386,1769509844954,-291.914687,0.00019178,2]
[403725387,1769509844963,-228.790219,0.00019178,2]
[403725389,1769509844972,-228.790219,0.00019178,2]
[403725391,1769509844981,-228.790219,0.00019178,2]
[403725393,1769509844990,-228.790219,0.00019178,2]
[403725395,1769509844999,-228.790219,0.00019178,2]
[403725397,1769509845008,-228.790219,0.00019178,2]
[403725398,1769509845016,-180.027684,0.00019178,2]
[403725400,1769509845025,-180.027684,0.00019178,2]
[403725402,1769509845034,-228.790219,0.00019178,2]
[403725404,1769509845043,-228.790219,0.00019178,2]
[403725405,1769509845051,-180.027684,0.00019178,2]
[403725407,1769509845062,-180.027684,0.00019178,2]
[403725409,1769509845071,-180.027684,0.00019178,2]
[403725411,1769509845080,-180.027684,0.00019178,2]
[403725413,1769509845089,-180.027684,0.00019178,2]
[403725414,1769509845098,-180.027684,0.00019178,2]
[403725416,1769509845107,-151.0,0.00019178,2]
[403725418,1769509845117,-151.0,0.00019178,2]
[403725420,1769509845126,-151.0,0.00019178,2]
[403725422,1769509845135,-151.0,0.00019178,2]
[403725424,1769509845144,-1435.484562,0.00019178,2]
[403725425,1769509845152,-1435.484562,0.00019178,2]
[403725427,1769509845162,-1435.484562,0.00019178,2]
[403725429,1769509845171,-1435.484562,0.00019178,2]
[403725431,1769509845180,-1435.484562,0.00019178,2]
[403725433,1769509845189,-1435.484562,0.00019178,2]
[403725434,1769509845199,-1435.484562,0.00019178,2]
[403725436,1769509845208,-259.504741,0.00019178,2]
[403725438,1769509845218,-1435.484562,0.00019178,2]
[403725440,1769509845229,-259.504741,0.00019178,2]
[403725442,1769509845238,-259.504741,0.00019178,2]
[403725444,1769509845248,-259.504741,0.00019178,2]
[403725445,1769509845257,-259.504741,0.00019178,2]
[403725447,1769509845266,-259.504741,0.00019178,2]
[403725449,1769509845276,-259.504741,0.00019178,2]
[403725451,1769509845285,-259.504741,0.00019178,2]
[403725453,1769509845295,-522.123162,0.00019178,2]
[403725454,1769509845304,-522.123162,0.00019178,2]
[403725456,1769509845313,-522.123162,0.00019178,2]
[403725458,1769509845321,-522.123162,0.00019178,2]
[403725460,1769509845330,-522.123162,0.00019178,2]
[403725462,1769509845339,-522.123162,0.00019178,2]
[403725463,1769509845348,-522.123162,0.00019178,2]
[403725465,1769509845360,-522.123162,0.00019178,2]
[403725467,1769509845370,-151.0,0.00019178,2]
[403725469,1769509845379,-151.0,0.00019178,2]
[403725471,1769509845388,-194.873958,0.00019178,2]
[403725472,1769509845397,-151.306167,0.00019178,2]
[403725474,1769509845406,-1775.766818,0.00019178,2]
[403725476,1769509845416,-1775.766818,0.00019178,2]
[403725478,1769509845425,-1775.766818,0.00019178,2]
[403725480,1769509845434,-1775.766818,0.00019178,2]
[403725482,1769509845444,-1775.766818,0.00019178,2]
[403725483,1769509845452,-1775.766818,0.00019178,2]
[403725485,1769509845461,-1775.766818,0.00019178,2]
[403725487,1769509845470,-1775.766818,0.00019178,2]
[403725489,1769509845479,-151.0,0.00019178,2]
[403725491,1769509845488,-151.0,0.00019178,2]
[403725492,1769509845496,-151.0,0.00019178,2]
[403725494,1769509845505,-151.0,0.00019178,2]
[403725496,1769509845514,-347.428255,0.00019178,2]
[403725498,1769509845523,-347.428255,0.00019178,2]
[403725500,1769509845532,-347.428255,0.00019178,2]
[403725501,1769509845540,-347.428255,0.00019178,2]
[403725503,1769509845549,-347.428255,0.00019178,2]
[403725505,1769509845558,-347.428255,0.00019178,2]
[403725507,1769509845566,-347.428255,0.00019178,2]
[403725510,1769509845575,-347.428255,0.00019178,2]
[403725512,1769509845583,-186.235497,0.00019178,2]
[403725514,1769509845592,-186.235497,0.00019178,2]
[403725517,1769509845601,-186.235497,0.00019178,2]
[403725520,1769509845610,-186.235497,0.00019178,2]
[403725523,1769509845619,-186.235497,0.00019178,2]
[403725525,1769509845627,-186.235497,0.00019178,2]
[403725528,1769509845636,-186.235497,0.00019178,2]
[403725531,1769509845645,-186.235497,0.00019178,2]
[403725534,1769509845654,-151.0,0.00019178,2]
[403725537,1769509845663,-151.0,0.00019178,2]
[403725539,1769509845672,-1488.040989,0.00019178,2]
[403725542,1769509845681,-1488.040989,0.00019178,2]
[403725545,1769509845691,-257.082489,0.00019178,2]
[403725548,1769509845700,-1488.040989,0.00019178,2]
[403725551,1769509845709,-1488.040989,0.00019178,2]
[403725553,1769509845717,-1488.040989,0.00019178,2]
[403725556,1769509845727,-1488.040989,0.00019178,2]
[403725559,1769509845740,-1488.040989,0.00019178,2]
[403725561,1769509845749,-1488.040989,0.00019178,2]
[403725563,1769509845758,-491.197121,0.00019178,2]
[403725564,1769509845768,-491.197121,0.00019178,2]
[403725566,1769509845779,-491.197121,0.00019178,2]
[403725568,1769509845789,-491.197121,0.00019178,2]
[403725570,1769509845798,-491.197121,0.00019178,2]
[403725572,1769509845810,-491.197121,0.00019178,2]
[403725574,1769509845820,-491.197121,0.00019178,2]
[403725576,1769509845829,-491.197121,0.00019178,2]
[403725577,1769509845838,-154.22929,0.00019178,2]
[403725579,1769509845847,-154.22929,0.00019178,2]
[403725581,1769509845856,-154.22929,0.00019178,2]
[403725583,1769509845865,-154.22929,0.00019178,2]
[403725584,1769509845874,-154.22929,0.00019178,2]
[403725586,1769509845883,-154.22929,0.00019178,2]
[403725588,1769509845893,-154.22929,0.00019178,2]
[403725590,1769509845901,-154.22929,0.00019178,2]
[403725592,1769509845911,-190.922185,0.00019178,2]
[403725593,1769509845920,-190.922185,0.00019178,2]
[403725595,1769509845929,-190.922185,0.00019178,2]
[403725597,1769509845939,-190.922185,0.00019178,2]
[403725599,1769509845949,-190.922185,0.00019178,2]
[403725601,1769509845958,-190.922185,0.00019178,2]
[403725603,1769509845967,-190.922185,0.00019178,2]
[403725604,1769509845977,-190.922185,0.00019178,2]
[403725606,1769509845986,-151.0,0.00019178,2]
[403725608,1769509845995,-151.0,0.00019178,2]
[403725610,1769509846004,-151.0,0.00019178,2]
[403725612,1769509846014,-151.0,0.00019178,2]
[403725614,1769509846023,-151.0,0.00019178,2]
[403725615,1769509846032,-151.0,0.00019178,2]
[403725617,1769509846041,-151.0,0.00019178,2]
[403725619,1769509846051,-151.0,0.00019178,2]
[403725621,1769509846059,-151.0,0.00019178,2]
[403725623,1769509846069,-151.0,0.00019178,2]
[403725624,1769509846079,-227.166415,0.00019178,2]
[403725626,1769509846088,-364.318764,0.00019178,2]
[403725628,1769509846098,-364.318764,0.00019178,2]
[403725630,1769509846107,-364.318764,0.00019178,2]
[403725632,1769509846116,-364.318764,0.00019178,2]
[403725634,1769509846126,-364.318764,0.00019178,2]
[403725635,1769509846135,-364.318764,0.00019178,2]
[403725637,1769509846144,-364.318764,0.00019178,2]
[403725639,1769509846153,-364.318764,0.00019178,2]
[403725641,1769509846162,-364.318764,0.00019178,2]
[403725643,1769509846171,-364.318764,0.00019178,2]
[403725644,1769509846180,-364.318764,0.00019178,2]
[403725646,1769509846189,-364.318764,0.00019178,2]
[403725648,1769509846199,-8624.357911,0.00019178,2]
[403725650,1769509846209,-8624.357911,0.00019178,2]
[403725652,1769509846218,-8624.357911,0.00019178,2]
[403725654,1769509846229,-8624.357911,0.00019178,2]
[403725656,1769509846238,-8624.357911,0.00019178,2]
[403725657,1769509846247,-8624.357911,0.00019178,2]
[403725659,1769509846256,-8624.357911,0.00019178,2]
[403725661,1769509846265,-8624.357911,0.00019178,2]
[403725663,1769509846275,-8624.357911,0.00019178,2]
[403725665,1769509846284,-8624.357911,0.00019178,2]
[403725667,1769509846293,-8624.357911,0.00019178,2]
[403725668,1769509846301,-8624.357911,0.00019178,2]
[403725670,1769509846311,-151.0,0.00019178,2]
[403725672,1769509846321,-151.0,0.00019178,2]
[403725674,1769509846330,-151.0,0.00019178,2]
[403725676,1769509846339,-151.0,0.00019178,2]
[403725678,1769509846348,-151.0,0.00019178,2]
[403725680,1769509846357,-151.0,0.00019178,2]
[403725682,1769509846366,-151.0,0.00019178,2]
[403725683,1769509846375,-151.0,0.00019178,2]
[403725685,1769509846385,-151.0,0.00019178,2]
[403725687,1769509846394,-151.0,0.00019178,2]
[403725689,1769509846404,-151.0,0.00019178,2]
[403725691,1769509846413,-210.913292,0.00019178,2]
[403725693,1769509846423,-276.802729,0.00019178,2]
[403725695,1769509846431,-257.35298,0.00019178,2]
[403725697,1769509846440,-151.0,0.00019178,2]
[403725698,1769509846449,-152.016847,0.00019178,2]
[403725700,1769509846459,-151.0,0.00019178,2]
[403725702,1769509846468,-151.0,0.00019178,2]
[403725704,1769509846477,-151.0,0.00019178,2]
[403725706,1769509846487,-231.52734,0.00019178,2]
[403725708,1769509846496,-151.0,0.00019178,2]
[403725710,1769509846505,-151.0,0.00019178,2]
[403725711,1769509846514,-151.0,0.00019178,2]
[403725713,1769509846523,-151.0,0.00019178,2]
[403725715,1769509846533,-230.007319,0.00019178,2]
[403725717,1769509846542,-151.0,0.00019178,2]
[403725719,1769509846551,-230.007319,0.00019178,2]
[403725721,1769509846560,-287.078315,0.00019178,2]
[403725723,1769509846570,-230.007319,0.00019178,2]
[403725725,1769509846579,-230.007319,0.00019178,2]
[403725726,1769509846588,-230.007319,0.00019178,2]
[403725728,1769509846597,-230.007319,0.00019178,2]
[403725730,1769509846606,-230.007319,0.00019178,2]